[Event "HUN-chT Youth 2019"]
[Site "Budapest"]
[Date "2019.10.26"]
[Round "1.27"]
[White "Szivak, Andras"]
[Black "Daroczi, Donat"]
[Result "0-1"]
[ECO "D36"]
[WhiteElo "1730"]
[BlackElo "1976"]
[Annotator "NA"]
[PlyCount "62"]
[EventDate "2019.10.26"]
[EventType "team-tourn"]
[EventCountry "HUN"]
[SourceTitle "playchess.com"]
[Source "ChessBase"]
[SourceQuality "1"]
[TimeControl "5400+30"]

1. d4 {[%emt 0:00:00]} Nf6 {[%emt 0:00:00]} 2. c4 {[%emt 0:00:28]} e6 {[%emt 0:00:00]} 3. Nc3 {[%emt 0:00:24]} d5 {[%emt 0:00:00]} 4. cxd5 {[%emt 0:00:25]} exd5 {[%emt 0:00:00]} 5. Bg5 {[%emt 0:00:28]} Be7 {[%emt 0:00:09]} 6. e3 {[%emt 0:00:40]} c6 {[%emt 0:00:39]} 7. Bd3 {[%emt 0:01:32]} Nbd7 {[%emt 0:00:40]} 8. Nge2 {[%emt 0:01:51]} Nh5 {[%emt 0:03:52]} 9. Bxe7 {[%emt 0:04:14]} Qxe7 {[%emt 0:00:17]} 10. Qc2 {[%emt 0:02:36]} Nb6 {[%emt 0:04:11]} 11. O-O {[%emt 0:03:37]} g6 {[%emt 0:06:38]} 12. e4 {[%emt 0:21:41]} dxe4 {[%emt 0:11:32]} 13. Nxe4 {[%emt 0:02:51]} O-O {[%emt 0:05:11]} 14. Qc5 {[%emt 0:04:13]} Re8 {[%emt 0:07:38]} 15. Rad1 {[%emt 0:17:38]} Bf5 {[%emt 0:06:03]} 16. N2g3 {[%emt 0:09:22]} Bxe4 {[%emt 0:18:11]} 17. Nxe4 {[%emt 0:02:28]} Nf4 {[%emt 0:01:06]} 18. Rfe1 {[%emt 0:10:58]} Nxd3 {[%emt 0:15:58]} 19. Rxd3 {[%emt 0:02:24]} Kg7 {[%emt 0:02:47]} 20. Qxe7 {[%emt 0:01:39]} Rxe7 {[%emt 0:00:00]} 21. Kf1 {[%emt 0:02:21]} Rae8 {[%emt 0:00:50]} 22. Rde3 {[%emt 0:02:27]} Nc4 {[%emt 0:00:04]} 23. R3e2 {[%emt 0:01:01]} Rxe4 {[%emt 0:00:06]} 24. Rxe4 {[%emt 0:01:53]} Rxe4 {[%emt 0:00:33]} 25. Rxe4 {[%emt 0:01:02]} Nd2+ {[%emt 0:00:02]} 26. Ke2 {[%emt 0:00:17]} Nxe4 {[%emt 0:00:03]} 27. Ke3 {[%emt 0:00:56]} Nd6 {[%emt 0:00:04]} 28. Kd3 {[%emt 0:00:15]} Kf6 {[%emt 0:00:03]} 29. b4 {[%emt 0:01:37]} Ke6 {[%emt 0:01:29]} 30. a4 {[%emt 0:03:04]} Kd5 {[%emt 0:00:26]} 31. f4 {[%emt 0:00:12]} Nf5 {[%emt 0:00:06]} 0-1

[Event "HUN-chT Youth 2019"]
[Site "Budapest"]
[Date "2019.10.26"]
[Round "1.28"]
[White "Varga, Gabor"]
[Black "Novak, Levente Peter"]
[Result "1-0"]
[ECO "B76"]
[WhiteElo "1820"]
[BlackElo "1639"]
[Annotator "NA"]
[PlyCount "71"]
[EventDate "2019.10.26"]
[EventType "team-tourn"]
[EventCountry "HUN"]
[SourceTitle "playchess.com"]
[Source "ChessBase"]
[SourceQuality "1"]
[TimeControl "5400+30"]

1. e4 {[%emt 0:00:00]} c5 {[%emt 0:00:00]} 2. Nf3 {[%emt 0:00:00]} d6 {[%emt 0:00:00]} 3. d4 {[%emt 0:00:10]} cxd4 {[%emt 0:00:00]} 4. Nxd4 {[%emt 0:00:07]} Nf6 {[%emt 0:00:10]} 5. Nc3 {[%emt 0:00:21]} g6 {[%emt 0:00:15]} 6. f3 {[%emt 0:00:16]} Bg7 {[%emt 0:00:18]} 7. Be3 {[%emt 0:00:23]} Nc6 {[%emt 0:00:35]} 8. Qd2 {[%emt 0:00:36]} O-O {[%emt 0:00:17]} 9. O-O-O {[%emt 0:00:54]} d5 {[%emt 0:00:20]} 10. Nxc6 {[%emt 0:07:06]} bxc6 {[%emt 0:00:28]} 11. exd5 {[%emt 0:00:08]} cxd5 {[%emt 0:01:27]} 12. Nxd5 {[%emt 0:01:25]} Nxd5 {[%emt 0:00:15]} 13. Qxd5 {[%emt 0:00:14]} Qc7 {[%emt 0:01:07]} 14. Qc5 {[%emt 0:24:30]} Qb7 {[%emt 0:03:58]} 15. Bd4 {[%emt 0:00:25]} Bf5 {[%emt 0:23:31]} 16. Qc3 {[%emt 0:25:07]} Rfc8 {[%emt 0:13:47]} 17. Bc4 {[%emt 0:00:12]} Rxc4 {[%emt 0:02:57]} 18. Qxc4 {[%emt 0:01:52]} Rc8 {[%emt 0:00:38]} 19. Qa4 {[%emt 0:09:03]} Rxc2+ {[%emt 0:04:49]} 20. Qxc2 {[%emt 0:00:11]} Bxc2 {[%emt 0:00:08]} 21. Kxc2 {[%emt 0:00:07]} Qc8+ {[%emt 0:08:39]} 22. Bc3 {[%emt 0:00:19]} Bxc3 {[%emt 0:02:14]} 23. bxc3 {[%emt 0:00:11]} Kg7 {[%emt 0:01:48]} 24. Rd3 {[%emt 0:00:42]} Qc4 {[%emt 0:01:14]} 25. Ra1 {[%emt 0:01:42]} h5 {[%emt 0:03:24]} 26. Rd4 {[%emt 0:02:11]} Qe2+ {[%emt 0:00:56]} 27. Rd2 {[%emt 0:00:02]} Qe5 {[%emt 0:01:33]} 28. h3 {[%emt 0:00:24]} g5 {[%emt 0:03:12]} 29. Rc1 {[%emt 0:03:39]} f5 {[%emt 0:04:41]} 30. Kd1 {[%emt 0:00:52]} Qc5 {[%emt 0:04:38]} 31. c4 {[%emt 0:01:02]} e6 {[%emt 0:01:10]} 32. Rc3 {[%emt 0:02:41]} Kf6 {[%emt 0:00:53]} 33. Kc2 {[%emt 0:01:08]} f4 {[%emt 0:02:49]} 34. Kd3 {[%emt 0:06:40]} Kf5 {[%emt 0:01:14]} 35. Rb3 {[%emt 0:00:47]} g4 {[%emt 0:02:12]} 36. Rb5 {[%emt 0:00:18]} 1-0

[Event "HUN-chT Youth 2019"]
[Site "Budapest"]
[Date "2019.10.26"]
[Round "1.29"]
[White "Deak-Sala, Emilia"]
[Black "Kiss, Rebeka"]
[Result "1-0"]
[ECO "C55"]
[WhiteElo "1528"]
[BlackElo "1743"]
[Annotator "NA"]
[PlyCount "94"]
[EventDate "2019.10.26"]
[EventType "team-tourn"]
[EventCountry "HUN"]
[SourceTitle "playchess.com"]
[Source "ChessBase"]
[SourceQuality "1"]
[TimeControl "5400+30"]

1. e4 {[%emt 0:00:00]} e5 {[%emt 0:00:00]} 2. Nf3 {[%emt 0:00:00]} Nc6 {[%emt 0:00:00]} 3. Bc4 {[%emt 0:00:00]} Nf6 {[%emt 0:00:29]} 4. d3 {[%emt 0:00:00]} Be7 {[%emt 0:00:47]} 5. O-O {[%emt 0:00:00]} O-O {[%emt 0:00:25]} 6. c3 {[%emt 0:00:07]} d6 {[%emt 0:01:20]} 7. Bb3 {[%emt 0:00:41]} Na5 {[%emt 0:04:47]} 8. Bc2 {[%emt 0:00:18]} c5 {[%emt 0:00:43]} 9. Nbd2 {[%emt 0:00:59]} a6 {[%emt 0:07:28]} 10. Re1 {[%emt 0:02:23]} Re8 {[%emt 0:01:07]} 11. Nf1 {[%emt 0:00:32]} Bf8 {[%emt 0:07:15]} 12. Ng3 {[%emt 0:00:34]} g6 {[%emt 0:00:47]} 13. Bd2 {[%emt 0:02:13]} b5 {[%emt 0:09:05]} 14. h3 {[%emt 0:01:52]} Bg7 {[%emt 0:00:52]} 15. Qc1 {[%emt 0:00:48]} Nc6 {[%emt 0:09:28]} 16. Bh6 {[%emt 0:03:44]} Be6 {[%emt 0:04:53]} 17. Be3 {[%emt 0:05:26]} Rc8 {[%emt 0:06:23]} 18. Ng5 {[%emt 0:01:50]} Qe7 {[%emt 0:06:08]} 19. Nxe6 {[%emt 0:02:16]} fxe6 {[%emt 0:00:19]} 20. f4 {[%emt 0:03:55]} exf4 {[%emt 0:11:17]} 21. Bxf4 {[%emt 0:00:16]} Nd7 {[%emt 0:03:13]} 22. Qd2 {[%emt 0:06:33]} Be5 {[%emt 0:01:50]} 23. Bxe5 {[%emt 0:00:20]} Ncxe5 {[%emt 0:00:51]} 24. Rf1 {[%emt 0:04:11]} Qh4 {[%emt 0:04:35]} 25. Qe3 {[%emt 0:03:51]} Rf8 {[%emt 0:01:33]} 26. Rxf8+ {[%emt 0:01:29]} Rxf8 {[%emt 0:00:06]} 27. Rf1 {[%emt 0:01:05]} Rxf1+ {[%emt 0:01:18]} 28. Nxf1 {[%emt 0:00:33]} Kg7 {[%emt 0:00:55]} 29. b4 {[%emt 0:01:44]} Nc6 {[%emt 0:03:36]} 30. bxc5 {[%emt 0:02:21]} dxc5 {[%emt 0:00:48]} 31. d4 {[%emt 0:05:35]} Qe7 {[%emt 0:04:03]} 32. Nd2 {[%emt 0:07:36]} b4 {[%emt 0:01:46]} 33. Nb3 {[%emt 0:03:44]} bxc3 {[%emt 0:00:49]} 34. Qxc3 {[%emt 0:00:19]} Nxd4 {[%emt 0:00:29]} 35. Nxd4 {[%emt 0:00:47]} cxd4 {[%emt 0:00:04]} 36. Qxd4+ {[%emt 0:00:10]} e5 {[%emt 0:00:08]} 37. Qd3 {[%emt 0:01:15]} Qc5+ {[%emt 0:00:52]} 38. Kh2 {[%emt 0:00:22]} Qc6 {[%emt 0:01:11]} 39. Bb3 {[%emt 0:04:14]} a5 {[%emt 0:02:09]} 40. Bd5 {[%emt 0:02:15]} Qb6 {[%emt 0:01:05]} 41. Qa3 {[%emt 0:03:36]} Qc5 {[%emt 0:01:17]} 42. Qb2 {[%emt 0:04:42]} Qc7 {[%emt 0:00:20]} 43. Qb5 {[%emt 0:02:38]} Nf6 {[%emt 0:00:45]} 44. Qa6 {[%emt 0:03:27]} Nh5 {[%emt 0:00:53]} 45. Qe6 {[%emt 0:01:18]} Nf6 {[%emt 0:00:17]} 46. Qa6 {[%emt 0:02:42]} Nh5 {[%emt 0:00:31]} 47. Qe6 {[%emt 0:01:22]} Qd8 {[%emt 0:00:38]} 1-0

[Event "HUN-chT Youth 2019"]
[Site "Budapest"]
[Date "2019.10.26"]
[Round "1.30"]
[White "Fulop, Csilla"]
[Black "Makay, Mark Janos"]
[Result "0-1"]
[ECO "B32"]
[WhiteElo "1462"]
[BlackElo "1442"]
[Annotator "NA"]
[PlyCount "96"]
[EventDate "2019.10.26"]
[EventType "team-tourn"]
[EventCountry "HUN"]
[SourceTitle "playchess.com"]
[Source "ChessBase"]
[SourceQuality "1"]
[TimeControl "5400+30"]

1. e4 {[%emt 0:00:00]} c5 {[%emt 0:00:00]} 2. Nf3 {[%emt 0:00:00]} Nc6 {[%emt 0:00:00]} 3. d4 {[%emt 0:00:00]} cxd4 {[%emt 0:00:08]} 4. Nxd4 {[%emt 0:00:00]} Qb6 {[%emt 0:00:23]} 5. Nf3 {[%emt 0:02:55]} e5 {[%emt 0:02:52]} 6. Nbd2 {[%emt 0:02:47]} Bc5 {[%emt 0:02:35]} 7. Qe2 {[%emt 0:04:16]} Nf6 {[%emt 0:06:19]} 8. Nc4 {[%emt 0:05:27]} Qc7 {[%emt 0:02:46]} 9. Be3 {[%emt 0:04:10]} Nxe4 {[%emt 0:05:08]} 10. Bxc5 {[%emt 0:00:11]} Nxc5 {[%emt 0:00:11]} 11. Ncxe5 {[%emt 0:01:43]} O-O {[%emt 0:00:31]} 12. Nxc6 {[%emt 0:00:33]} dxc6 {[%emt 0:01:34]} 13. O-O-O {[%emt 0:00:31]} Bg4 {[%emt 0:04:27]} 14. Qe3 {[%emt 0:02:48]} Nd7 {[%emt 0:06:42]} 15. h3 {[%emt 0:03:22]} Rfe8 {[%emt 0:02:27]} 16. Qc3 {[%emt 0:02:43]} Bxf3 {[%emt 0:04:53]} 17. Qxf3 {[%emt 0:00:15]} Ne5 {[%emt 0:00:52]} 18. Qc3 {[%emt 0:04:14]} Rad8 {[%emt 0:05:25]} 19. Be2 {[%emt 0:03:53]} Ng6 {[%emt 0:04:37]} 20. Bd3 {[%emt 0:07:25]} Qf4+ {[%emt 0:06:32]} 21. Qd2 {[%emt 0:11:07]} Qxd2+ {[%emt 0:07:05]} 22. Rxd2 {[%emt 0:01:01]} Nf4 {[%emt 0:01:17]} 23. Rhd1 {[%emt 0:03:02]} g6 {[%emt 0:02:32]} 24. Bf1 {[%emt 0:07:09]} Rxd2 {[%emt 0:07:54]} 25. Rxd2 {[%emt 0:00:40]} Re7 {[%emt 0:01:40]} 26. g3 {[%emt 0:02:31]} Ne6 {[%emt 0:01:41]} 27. h4 {[%emt 0:02:59]} Kg7 {[%emt 0:00:54]} 28. Kd1 {[%emt 0:03:36]} Nc5 {[%emt 0:01:41]} 29. b3 {[%emt 0:02:13]} Ne4 {[%emt 0:00:51]} 30. Bd3 {[%emt 0:07:09]} Nxd2 {[%emt 0:00:15]} 31. Kxd2 {[%emt 0:00:05]} f5 {[%emt 0:00:14]} 32. h5 {[%emt 0:01:25]} Kf6 {[%emt 0:01:12]} 33. hxg6 {[%emt 0:00:55]} hxg6 {[%emt 0:00:24]} 34. f3 {[%emt 0:02:32]} g5 {[%emt 0:02:53]} 35. g4 {[%emt 0:01:00]} f4 {[%emt 0:00:39]} 36. Be4 {[%emt 0:00:20]} Ke5 {[%emt 0:00:16]} 37. c3 {[%emt 0:00:44]} Re6 {[%emt 0:01:33]} 38. a4 {[%emt 0:02:46]} Rh6 {[%emt 0:00:13]} 39. Kd3 {[%emt 0:00:45]} Rh1 {[%emt 0:00:21]} 40. Kd2 {[%emt 0:00:08]} a5 {[%emt 0:00:10]} 41. Ke2 {[%emt 0:01:50]} Rh2+ {[%emt 0:00:21]} 42. Kd1 {[%emt 0:00:49]} Rg2 {[%emt 0:00:27]} 43. b4 {[%emt 0:02:29]} axb4 {[%emt 0:00:49]} 44. cxb4 {[%emt 0:00:07]} Rb2 {[%emt 0:00:05]} 45. b5 {[%emt 0:00:35]} cxb5 {[%emt 0:00:12]} 46. Bxb7 {[%emt 0:00:34]} bxa4 {[%emt 0:00:10]} 47. Bc6 {[%emt 0:00:39]} a3 {[%emt 0:00:09]} 48. Kc1 {[%emt 0:00:08]} Kd4 {[%emt 0:00:23]} 0-1

[Event "HUN-chT Youth 2019"]
[Site "Budapest"]
[Date "2019.10.26"]
[Round "1.31"]
[White "Acs, Marton"]
[Black "Szalay-Ocsak, Bank"]
[Result "1-0"]
[ECO "D02"]
[WhiteElo "2126"]
[BlackElo "1852"]
[Annotator "ChessBase"]
[PlyCount "75"]
[EventDate "2019.10.26"]
[EventType "team-tourn"]
[EventCountry "HUN"]
[SourceTitle "playchess.com"]
[Source "ChessBase"]
[SourceQuality "1"]
[TimeControl "5400+30"]

1. Nf3 {[%emt 0:00:00]} Nf6 {[%emt 0:00:00]} 2. g3 {[%emt 0:00:00]} d5 {[%emt 0:00:00]} 3. Bg2 {[%emt 0:00:00]} c6 {[%emt 0:00:05]} 4. O-O {[%emt 0:00:03]} Bg4 {[%emt 0:00:12]} 5. d4 {[%emt 0:01:28]} e6 {[%emt 0:00:22]} 6. Nbd2 {[%emt 0:00:13]} Nbd7 {[%emt 0:00:13]} 7. Re1 {[%emt 0:00:13]} Be7 {[%emt 0:00:14]} 8. c3 {[%emt 0:02:45]} O-O {[%emt 0:01:03]} 9. e4 {[%emt 0:00:11]} dxe4 {[%emt 0:00:18]} 10. Nxe4 {[%emt 0:00:03]} Nxe4 {[%emt 0:00:07]} 11. Rxe4 {[%emt 0:00:05]} Bxf3 {[%emt 0:00:11]} 12. Bxf3 {[%emt 0:04:14]} Bg5 {[%emt 0:01:22]} 13. Bxg5 {[%emt 0:26:19]} Qxg5 {[%emt 0:01:51]} 14. a4 {[%emt 0:00:14]} a5 {[%emt 0:13:38]} 15. Qb3 {[%emt 0:04:36]} Rab8 {[%emt 0:05:42]} 16. c4 {[%emt 0:09:44]} Qd8 {[%emt 0:17:25]} 17. Rd1 {[%emt 0:03:09]} Qc7 {[%emt 0:09:48]} 18. Re3 {[%emt 0:15:48]} Nf6 {[%emt 0:06:27]} 19. Rc3 {[%emt 0:02:55]} Qe7 {[%emt 0:06:56]} 20. Qb6 {[%emt 0:02:08]} Qd8 {[%emt 0:02:52]} 21. Qc5 {[%emt 0:06:00]} Nd7 {[%emt 0:04:27]} 22. Qa3 {[%emt 0:01:12]} Nf6 {[%emt 0:02:14]} 23. b4 {[%emt 0:01:32]} axb4 {[%emt 0:03:00]} 24. Qxb4 {[%emt 0:00:02]} Qd7 {[%emt 0:01:31]} 25. a5 {[%emt 0:01:42]} Rfd8 {[%emt 0:03:47]} 26. Qb6 {[%emt 0:06:33]} Rbc8 {[%emt 0:04:14]} 27. Rb3 {[%emt 0:00:43]} Rc7 {[%emt 0:00:16]} 28. Kg2 {[%emt 0:01:53]} h6 {[%emt 0:02:49]} 29. h4 {[%emt 0:00:26]} Qe7 {[%emt 0:00:58]} 30. a6 {[%emt 0:04:47]} bxa6 {[%emt 0:01:57]} 31. Qxa6 {[%emt 0:02:11]} c5 {[%emt 0:03:53]} 32. d5 {[%emt 0:00:24]} Ra7 {[%emt 0:03:10]} 33. Qc6 {[%emt 0:01:52]} Rad7 {[%emt 0:02:30]} 34. Re1 {[%emt 0:01:12]} Qd6 {[%emt 0:01:30]} 35. dxe6 {[%emt 0:00:32]} Qxc6 {[%emt 0:00:58]} 36. Bxc6 {[%emt 0:00:38]} Rd6 {[%emt 0:00:47]} 37. e7 {[%emt 0:00:35]} Rc8 {[%emt 0:01:07]} 38. e8=Q+ {[%emt 0:00:11]} 1-0

[Event "HUN-chT Youth 2019"]
[Site "Budapest"]
[Date "2019.10.26"]
[Round "1.32"]
[White "Farkas, Otto Jr."]
[Black "Juhasz, Judit"]
[Result "0-1"]
[ECO "E81"]
[WhiteElo "1848"]
[BlackElo "2004"]
[Annotator "NA"]
[PlyCount "46"]
[EventDate "2019.10.26"]
[EventType "team-tourn"]
[EventCountry "HUN"]
[SourceTitle "playchess.com"]
[Source "ChessBase"]
[SourceQuality "1"]
[TimeControl "5400+30"]

1. d4 {[%emt 0:00:00]} Nf6 {[%emt 0:00:00]} 2. c4 {[%emt 0:00:00]} g6 {[%emt 0:00:00]} 3. Nc3 {[%emt 0:00:01]} Bg7 {[%emt 0:00:00]} 4. e4 {[%emt 0:00:13]} d6 {[%emt 0:00:00]} 5. f3 {[%emt 0:00:05]} O-O {[%emt 0:00:17]} 6. Be3 {[%emt 0:00:09]} Nfd7 {[%emt 0:01:57]} 7. Qd2 {[%emt 0:05:02]} e5 {[%emt 0:02:12]} 8. d5 {[%emt 0:02:46]} a5 {[%emt 0:02:43]} 9. O-O-O {[%emt 0:00:29]} Na6 {[%emt 0:00:56]} 10. Bd3 {[%emt 0:20:57]} Ndc5 {[%emt 0:02:04]} 11. Bc2 {[%emt 0:07:46]} f5 {[%emt 0:06:19]} 12. exf5 {[%emt 0:00:23]} Bxf5 {[%emt 0:00:37]} 13. Bxf5 {[%emt 0:01:21]} gxf5 {[%emt 0:02:10]} 14. Bg5 {[%emt 0:15:23]} Qe8 {[%emt 0:02:30]} 15. Nge2 {[%emt 0:15:47]} Qg6 {[%emt 0:05:14]} 16. f4 {[%emt 0:09:45]} h6 {[%emt 0:02:30]} 17. Bh4 {[%emt 0:00:15]} e4 {[%emt 0:01:10]} 18. Kb1 {[%emt 0:03:19]} Nd3 {[%emt 0:01:56]} 19. Nc1 {[%emt 0:02:10]} Nac5 {[%emt 0:00:39]} 20. h3 {[%emt 0:03:49]} Nxb2 {[%emt 0:00:48]} 21. Kxb2 {[%emt 0:02:12]} Na4+ {[%emt 0:00:33]} 22. Kb3 {[%emt 0:00:48]} Nxc3 {[%emt 0:00:32]} 23. Rdg1 {[%emt 0:00:08]} Qe8 {[%emt 0:00:17]} 0-1

[Event "HUN-chT Youth 2019"]
[Site "Budapest"]
[Date "2019.10.26"]
[Round "1.34"]
[White "Geczi-Zajzon, Kristof"]
[Black "Erseki, Aron"]
[Result "0-1"]
[ECO "B73"]
[WhiteElo "1627"]
[BlackElo "1847"]
[Annotator "NA"]
[PlyCount "78"]
[EventDate "2019.10.26"]
[EventType "team-tourn"]
[EventCountry "HUN"]
[SourceTitle "playchess.com"]
[Source "ChessBase"]
[SourceQuality "1"]
[TimeControl "5400+30"]

1. e4 {[%emt 0:00:00]} c5 {[%emt 0:00:00]} 2. Nf3 {[%emt 0:00:00]} d6 {[%emt 0:00:29]} 3. d4 {[%emt 0:00:00]} cxd4 {[%emt 0:00:05]} 4. Nxd4 {[%emt 0:00:00]} Nf6 {[%emt 0:00:10]} 5. Nc3 {[%emt 0:00:00]} g6 {[%emt 0:00:11]} 6. Be2 {[%emt 0:00:41]} Bg7 {[%emt 0:00:26]} 7. Be3 {[%emt 0:00:33]} Nc6 {[%emt 0:00:27]} 8. O-O {[%emt 0:00:46]} O-O {[%emt 0:00:06]} 9. Qd2 {[%emt 0:04:23]} Bd7 {[%emt 0:15:21]} 10. f4 {[%emt 0:03:26]} Qa5 {[%emt 0:07:01]} 11. Bf3 {[%emt 0:04:21]} Bg4 {[%emt 0:13:30]} 12. Nxc6 {[%emt 0:07:46]} bxc6 {[%emt 0:00:34]} 13. e5 {[%emt 0:08:21]} dxe5 {[%emt 0:03:02]} 14. Bxc6 {[%emt 0:03:24]} Rac8 {[%emt 0:01:37]} 15. Bf3 {[%emt 0:02:24]} exf4 {[%emt 0:03:41]} 16. Bxf4 {[%emt 0:00:20]} Bxf3 {[%emt 0:00:27]} 17. Rxf3 {[%emt 0:00:55]} Qb6+ {[%emt 0:01:46]} 18. Kh1 {[%emt 0:02:30]} Qxb2 {[%emt 0:05:24]} 19. Rb1 {[%emt 0:00:53]} Ne4 {[%emt 0:03:57]} 20. Rxb2 {[%emt 0:02:17]} Nxd2 {[%emt 0:01:10]} 21. Bxd2 {[%emt 0:00:26]} Rfd8 {[%emt 0:00:10]} 22. Be3 {[%emt 0:15:50]} Rxc3 {[%emt 0:01:44]} 23. Rb1 {[%emt 0:02:13]} Rxc2 {[%emt 0:01:43]} 24. Bxa7 {[%emt 0:00:57]} Rxa2 {[%emt 0:00:43]} 25. Bc5 {[%emt 0:00:56]} Bf6 {[%emt 0:01:05]} 26. Re1 {[%emt 0:00:54]} Kg7 {[%emt 0:05:19]} 27. h3 {[%emt 0:01:00]} Rd7 {[%emt 0:04:24]} 28. Rfe3 {[%emt 0:01:01]} e6 {[%emt 0:01:36]} 29. Rb3 {[%emt 0:02:09]} Rdd2 {[%emt 0:02:13]} 30. Rb8 {[%emt 0:01:36]} Bg5 {[%emt 0:07:31]} 31. Rf1 {[%emt 0:01:44]} f5 {[%emt 0:04:23]} 32. Rb7+ {[%emt 0:02:01]} Kg8 {[%emt 0:00:45]} 33. Re1 {[%emt 0:01:33]} Ra6 {[%emt 0:01:18]} 34. Reb1 {[%emt 0:02:58]} Rd8 {[%emt 0:01:46]} 35. Rc7 {[%emt 0:02:37]} Bf4 {[%emt 0:01:47]} 36. Re7 {[%emt 0:00:24]} Rc6 {[%emt 0:02:41]} 37. Rbb7 {[%emt 0:01:53]} Be5 {[%emt 0:00:50]} 38. Rb5 {[%emt 0:05:18]} Rxc5 {[%emt 0:00:37]} 39. Rxc5 {[%emt 0:00:18]} Rd1# {[%emt 0:00:07]} 0-1

[Event "HUN-chT Youth 2019"]
[Site "Budapest"]
[Date "2019.10.26"]
[Round "1.35"]
[White "Bencze, Balazs Dominik"]
[Black "Koltai, Anna"]
[Result "1-0"]
[ECO "D04"]
[WhiteElo "1779"]
[BlackElo "1545"]
[Annotator "NA"]
[PlyCount "98"]
[EventDate "2019.10.26"]
[EventType "team-tourn"]
[EventCountry "HUN"]
[SourceTitle "playchess.com"]
[Source "ChessBase"]
[SourceQuality "1"]
[TimeControl "5400+30"]

1. Nf3 {[%emt 0:00:00]} d5 {[%emt 0:00:00]} 2. b3 {[%emt 0:00:00]} Nf6 {[%emt 0:00:16]} 3. Bb2 {[%emt 0:00:00]} Bf5 {[%emt 0:00:55]} 4. e3 {[%emt 0:00:27]} Nbd7 {[%emt 0:00:31]} 5. d4 {[%emt 0:00:42]} e6 {[%emt 0:01:05]} 6. Bd3 {[%emt 0:00:29]} Be4 {[%emt 0:01:23]} 7. O-O {[%emt 0:00:33]} Bd6 {[%emt 0:02:03]} 8. Nbd2 {[%emt 0:03:29]} h6 {[%emt 0:02:07]} 9. Ne5 {[%emt 0:02:24]} O-O {[%emt 0:03:04]} 10. f3 {[%emt 0:04:10]} Bxd3 {[%emt 0:01:47]} 11. cxd3 {[%emt 0:01:58]} c5 {[%emt 0:01:58]} 12. Nxd7 {[%emt 0:01:54]} Nxd7 {[%emt 0:01:08]} 13. f4 {[%emt 0:09:05]} Rc8 {[%emt 0:03:33]} 14. Nf3 {[%emt 0:04:27]} f6 {[%emt 0:03:23]} 15. Nh4 {[%emt 0:07:54]} Qe8 {[%emt 0:02:44]} 16. Qg4 {[%emt 0:12:31]} f5 {[%emt 0:08:04]} 17. Qg3 {[%emt 0:00:45]} Nf6 {[%emt 0:01:05]} 18. Nf3 {[%emt 0:10:28]} Nh5 {[%emt 0:03:17]} 19. Qh4 {[%emt 0:05:42]} Be7 {[%emt 0:04:39]} 20. Qf2 {[%emt 0:03:15]} Nf6 {[%emt 0:03:36]} 21. Ne5 {[%emt 0:06:22]} Bd6 {[%emt 0:03:43]} 22. h3 {[%emt 0:06:27]} Nh5 {[%emt 0:09:09]} 23. Rac1 {[%emt 0:03:58]} b6 {[%emt 0:07:11]} 24. Qf3 {[%emt 0:03:28]} a5 {[%emt 0:09:31]} 25. Rc2 {[%emt 0:01:31]} a4 {[%emt 0:01:51]} 26. Rfc1 {[%emt 0:04:04]} Ra8 {[%emt 0:04:02]} 27. b4 {[%emt 0:01:58]} a3 {[%emt 0:01:57]} 28. Ba1 {[%emt 0:00:26]} Rc8 {[%emt 0:01:35]} 29. bxc5 {[%emt 0:01:08]} Bxe5 {[%emt 0:02:45]} 30. dxe5 {[%emt 0:00:25]} g6 {[%emt 0:03:34]} 31. c6 {[%emt 0:01:47]} Rf7 {[%emt 0:01:52]} 32. c7 {[%emt 0:00:48]} Qb5 {[%emt 0:01:32]} 33. Qd1 {[%emt 0:00:45]} Ng7 {[%emt 0:01:38]} 34. Bd4 {[%emt 0:01:18]} Ne8 {[%emt 0:01:58]} 35. Rb1 {[%emt 0:00:53]} Qd7 {[%emt 0:01:14]} 36. Rxb6 {[%emt 0:00:59]} Nxc7 {[%emt 0:01:53]} 37. Qc1 {[%emt 0:01:00]} g5 {[%emt 0:02:58]} 38. fxg5 {[%emt 0:00:34]} hxg5 {[%emt 0:00:25]} 39. Rb7 {[%emt 0:00:20]} f4 {[%emt 0:02:04]} 40. Bb6 {[%emt 0:00:41]} f3 {[%emt 0:00:35]} 41. Rcxc7 {[%emt 0:00:31]} f2+ {[%emt 0:01:20]} 42. Kf1 {[%emt 0:00:48]} Rff8 {[%emt 0:00:37]} 43. Rxc8 {[%emt 0:00:31]} Rxc8 {[%emt 0:00:55]} 44. Rxd7 {[%emt 0:00:16]} Rxc1+ {[%emt 0:00:05]} 45. Kxf2 {[%emt 0:00:05]} Rc2+ {[%emt 0:00:12]} 46. Kf3 {[%emt 0:00:09]} Rxa2 {[%emt 0:00:17]} 47. Bc5 {[%emt 0:00:14]} Ra1 {[%emt 0:00:15]} 48. Ra7 {[%emt 0:00:38]} a2 {[%emt 0:00:12]} 49. Bd4 {[%emt 0:00:17]} Rf1+ {[%emt 0:00:55]} 1-0

[Event "HUN-chT Youth 2019"]
[Site "Budapest"]
[Date "2019.10.26"]
[Round "1.37"]
[White "Gergely, Daniel"]
[Black "Szabo, Marton Nandor"]
[Result "1/2-1/2"]
[ECO "D93"]
[WhiteElo "1551"]
[BlackElo "1803"]
[Annotator "NA"]
[PlyCount "47"]
[EventDate "2019.10.26"]
[EventType "team-tourn"]
[EventCountry "HUN"]
[SourceTitle "playchess.com"]
[Source "ChessBase"]
[SourceQuality "1"]
[TimeControl "5400+30"]

1. d4 {[%emt 0:00:00]} Nf6 {[%emt 0:00:00]} 2. Bf4 {[%emt 0:00:01]} g6 {[%emt 0:00:07]} 3. e3 {[%emt 0:00:46]} d5 {[%emt 0:00:08]} 4. Nf3 {[%emt 0:00:09]} Bg7 {[%emt 0:00:15]} 5. Be2 {[%emt 0:00:22]} b6 {[%emt 0:02:06]} 6. O-O {[%emt 0:00:42]} Bb7 {[%emt 0:00:43]} 7. c4 {[%emt 0:00:54]} Nbd7 {[%emt 0:02:42]} 8. Nc3 {[%emt 0:00:53]} O-O {[%emt 0:03:41]} 9. Rc1 {[%emt 0:02:09]} c5 {[%emt 0:02:54]} 10. Re1 {[%emt 0:04:43]} Rc8 {[%emt 0:02:34]} 11. Bg3 {[%emt 0:02:03]} dxc4 {[%emt 0:02:40]} 12. dxc5 {[%emt 0:01:17]} Nxc5 {[%emt 0:01:11]} 13. Bxc4 {[%emt 0:01:47]} Qxd1 {[%emt 0:05:58]} 14. Rexd1 {[%emt 0:02:11]} Bxf3 {[%emt 0:01:04]} 15. gxf3 {[%emt 0:00:19]} Rfd8 {[%emt 0:01:19]} 16. Bb5 {[%emt 0:02:44]} a6 {[%emt 0:04:28]} 17. Be2 {[%emt 0:03:16]} a5 {[%emt 0:38:22]} 18. Rxd8+ {[%emt 0:05:07]} Rxd8 {[%emt 0:00:17]} 19. Bc7 {[%emt 0:03:28]} Rc8 {[%emt 0:03:56]} 20. Bxb6 {[%emt 0:09:22]} Na4 {[%emt 0:01:36]} 21. Bxa5 {[%emt 0:01:05]} Nd5 {[%emt 0:02:39]} 22. Rd1 {[%emt 0:05:57]} Ndxc3 {[%emt 0:04:16]} 23. bxc3 {[%emt 0:01:29]} Nxc3 {[%emt 0:00:48]} 24. Bxc3 {[%emt 0:00:42]} 1/2-1/2